bitfinex/quotes_ETHUSD_20250213
["timestamp","ask_amount","ask_price","bid_price","bid_amount"]
[1739433673644,0.015,2680.9,2680.5,3.73051]
[1739433674026,0.015,2680.9,2680.6,3.73047]
[1739433674428,0.015,2680.9,2680.6,3.73039]
[1739433675336,0.47056449,2680.9,2680.6,3.73039]
[1739433675689,4.87e-06,2681.1,2680.4,0.75598657]
[1739433675833,4.87e-06,2681.3,2681.0,3.72985]
[1739433676166,0.0075,2681.1,2680.7,0.8158]
[1739433676329,0.0075,2680.9,2680.5,3.73055]
[1739433676526,0.0075,2680.9,2680.7,3.73033]
[1739433676932,0.0075,2680.9,2680.5,3.73055]
[1739433677176,0.0075,2680.9,2680.6,3.73048]
[1739433677402,0.015,2680.9,2680.5,3.73055]
[1739433677543,0.524411,2680.9,2680.5,3.73055]
[1739433677735,0.524411,2680.9,2680.6,3.7304]
[1739433678192,0.524411,2680.9,2680.5,3.73055]
[1739433678354,4.254601,2680.9,2680.4,0.75598657]
[1739433678554,0.524411,2680.9,2680.4,4.48676657]
[1739433679191,0.0075,2680.7,2680.4,0.75598657]
[1739433679352,0.0075,2680.5,2680.1,6.73113]
[1739433679688,0.015,2680.3,2680.2,3.73106]
[1739433680262,0.015,2680.3,2680.1,6.73112]
[1739433680846,0.015,2680.3,2680.1,3.0]
[1739433681097,0.015,2680.3,2680.1,6.73118]
[1739433681387,0.015,2680.3,2680.1,7.46236]
[1739433681633,0.015,2680.3,2680.1,3.73111]
[1739433681953,0.015,2680.3,2680.2,3.73106]
[1739433682799,0.015,2680.3,2680.0,268.72972972]
[1739433683498,0.015,2680.3,2680.0,272.46105972]
[1739433683794,0.015,2680.3,2680.0,268.72972972]
[1739433684156,0.417266,2680.3,2680.0,268.72972972]
[1739433684897,0.417266,2680.3,2680.0,272.46104972]
[1739433685082,0.015,2680.3,2680.0,272.46104972]
[1739433686203,0.015,2680.3,2680.1,3.73118]
[1739433686578,0.015,2680.3,2680.1,3.73112]
[1739433686782,0.015,2680.3,2680.1,7.46222]
[1739433687103,0.015,2680.3,2680.2,4.54406]
[1739433687473,0.292,2680.3,2680.1,3.7311]
[1739433687811,0.292,2680.3,2680.1,7.46223]
[1739433688030,0.292,2680.3,2680.1,3.7311]
[1739433688509,0.292,2680.3,2680.2,3.73106]
[1739433690715,0.292,2680.3,2680.1,3.73108]
[1739433691413,0.292,2680.3,2680.2,3.73106]
[1739433693000,4.87e-06,2680.5,2680.2,0.03730633]
[1739433693183,0.8197,2681.0,2680.8,3.73021]
[1739433693370,0.277,2680.9,2680.8,7.46036]
[1739433693571,0.277,2680.9,2680.8,3.73015]
[1739433693775,0.015,2680.8,2680.5,3.73064]
[1739433694241,0.499167,2680.8,2680.4,3.73078]
[1739433694573,0.015,2680.6,2680.2,6.73094]
[1739433694774,0.015,2680.6,2680.3,3.73092]
[1739433695012,0.015,2680.6,2680.2,6.73094]
[1739433695220,0.015,2680.6,2680.4,3.73077]
[1739433695813,0.015,2680.6,2680.5,3.73064]
[1739433696887,0.015,2680.6,2680.4,3.73077]
[1739433697089,0.015,2680.6,2680.5,3.73064]
[1739433697737,0.015,2680.6,2680.3,3.7309]
[1739433698226,0.015,2680.6,2680.2,3.0]
[1739433698227,0.565,2680.6,2680.2,3.0]
[1739433698431,0.565,2680.6,2680.1,3.73116]
[1739433698592,0.0075,2680.4,2680.1,3.73116]
[1739433699001,0.0075,2680.4,2680.3,3.73092]
[1739433699207,0.0075,2680.5,2680.3,3.73092]
[1739433699401,0.0075,2680.5,2680.4,3.73078]
[1739433699730,0.0075,2680.5,2680.3,3.73084]
[1739433700335,0.0075,2680.5,2680.4,3.73078]
[1739433703063,0.565,2680.3,2680.0,268.72972972]
[1739433703361,4.2962,2680.1,2680.0,268.72972972]
[1739433705132,0.565,2680.1,2680.0,268.72972972]
[1739433705808,4.2962,2680.1,2680.0,268.72972972]
[1739433706034,0.565,2680.1,2680.0,268.72972972]
[1739433706230,4.2962,2680.1,2680.0,268.72972972]
[1739433706395,5.18052449,2680.1,2680.0,268.72972972]
[1739433706595,6.01062449,2680.1,2680.0,268.72972972]
[1739433707002,6.01062936,2680.1,2680.0,268.72972972]
[1739433713797,9.58088196,2680.1,2680.0,259.40137972]
[1739433714298,12.68088196,2680.1,2680.0,247.4371248]
[1739433716367,12.58088196,2680.1,2680.0,247.4371248]
[1739433718085,9.28762936,2680.1,2680.0,247.4371248]
[1739433719082,15.19962936,2680.1,2680.0,247.4371248]
[1739433722115,14.92262936,2680.1,2680.0,247.4371248]
[1739433722312,6.20400487,2680.1,2680.0,247.4371248]
[1739433722615,6.204,2680.1,2680.0,248.2407248]
[1739433722789,6.204,2680.1,2680.0,251.9720648]
[1739433723169,6.1965,2680.1,2680.0,251.9720648]
[1739433724322,6.204,2680.1,2680.0,248.2407248]
[1739433724688,6.754,2680.1,2680.0,248.2407248]
[1739433724880,6.754,2680.1,2680.0,247.4371248]
[1739433726289,6.204,2680.1,2680.0,251.1684648]
[1739433726616,6.204,2680.1,2680.0,247.4371248]
[1739433727696,6.754,2680.1,2680.0,247.4371248]
[1739433728285,10.4852,2680.1,2680.0,247.4371248]
[1739433728680,4.5732,2680.1,2680.0,247.4371248]
[1739433728881,5.403635,2680.1,2680.0,247.4371248]
[1739433729306,0.842,2680.1,2680.0,247.4371248]
[1739433729515,4.5732,2680.1,2680.0,247.4371248]
[1739433731309,4.5732,2680.1,2680.0,245.43302273]
[1739433731310,8.95775747,2680.1,2680.0,245.43302273]
[1739433731627,11.95775747,2680.1,2680.0,245.43302273]
[1739433733123,8.95775747,2680.1,2680.0,245.43302273]
[1739433733297,10.22664822,2680.1,2680.0,245.43302273]
[1739433734024,6.65639562,2680.1,2680.0,245.43302273]
[1739433736505,0.56500487,2680.1,2680.0,245.43302273]
[1739433737036,4.57320487,2680.1,2680.0,245.43302273]
[1739433737401,0.84200487,2680.1,2680.0,245.43302273]
[1739433738526,0.01500487,2680.1,2680.0,245.43302273]
[1739433738714,0.29200487,2680.1,2680.0,245.43302273]
[1739433739111,0.01500487,2680.1,2680.0,245.43302273]
[1739433739326,0.29200487,2680.1,2680.0,249.95796273]
[1739433739740,0.27700487,2680.1,2680.0,246.22662273]
[1739433739909,0.28450487,2680.1,2680.0,249.95796273]
[1739433741041,0.28450487,2680.1,2680.0,246.22662273]
[1739433741539,0.28450487,2680.1,2680.0,249.95796273]
[1739433741788,0.2845,2680.1,2680.0,249.95796273]
[1739433741918,0.2845,2680.1,2680.0,246.22662273]
[1739433742248,0.2845,2680.1,2680.0,249.95796273]
[1739433742441,0.2845,2680.1,2680.0,246.22662273]
[1739433742808,0.2845,2680.1,2680.0,249.95796273]
[1739433744443,0.2845,2680.1,2680.0,246.22662273]
[1739433744744,0.292,2680.1,2680.0,246.22662273]
[1739433747919,4.0232,2680.1,2680.0,245.43302273]
[1739433748441,0.292,2680.1,2680.0,245.43302273]
[1739433749355,4.5732,2680.1,2680.0,245.43302273]
[1739433749562,5.403615,2680.1,2680.0,245.43302273]
[1739433749736,0.842,2680.1,2680.0,245.43302273]
[1739433752058,4.5732,2680.1,2680.0,245.43302273]
[1739433752771,0.842,2680.1,2680.0,245.43302273]
[1739433753081,0.842,2680.1,2680.0,246.22862273]
[1739433753776,0.292,2680.1,2680.0,246.22862273]
[1739433753936,0.292,2680.1,2680.0,249.95996273]
[1739433754137,0.292,2680.1,2680.0,246.22862273]
[1739433755166,0.292,2680.1,2680.0,249.95996273]
[1739433759046,0.015,2680.1,2680.0,249.95996273]
[1739433759248,0.292,2680.1,2680.0,249.95996273]
[1739433759889,0.2845,2680.1,2680.0,249.95996273]
[1739433761580,5.911,2680.6,2680.5,3.73064]
[1739433761816,6.188,2680.6,2680.5,4.55884]
[1739433762156,6.203,2680.6,2680.5,4.55884]
[1739433762492,5.911,2680.6,2680.5,4.55884]
[1739433764877,5.911,2680.6,2680.5,7.55884]
[1739433765891,0.2845,2681.1,2681.0,4.51855]
[1739433767119,0.0075,2681.1,2681.0,4.51855]
[1739433767330,0.2835,2681.1,2681.0,4.51855]
[1739433769488,0.2835,2681.1,2681.0,5.27381322]
[1739433769696,0.2835,2681.1,2681.0,4.51855]
[1739433770575,0.2835,2681.1,2681.0,0.7886]
[1739433771577,0.2835,2681.1,2681.0,4.51855]
[1739433773119,0.291,2681.1,2681.0,0.7886]
[1739433774811,0.291,2681.1,2681.0,4.51855]
[1739433779982,4.87e-06,2681.5,2681.4,3.72939]
[1739433780108,0.27600487,2681.5,2681.4,4.52809]
[1739433780536,0.29100487,2681.5,2681.4,4.52809]
[1739433780748,0.29100487,2681.5,2681.4,3.72939]
[1739433782475,0.015,2681.4,2681.1,3.72971]
[1739433783268,0.46760321,2681.4,2681.1,3.72971]
[1739433783411,0.015,2681.2,2680.9,4.5225]
[1739433783749,0.015,2681.2,2681.1,3.72981]
[1739433783947,0.27600487,2681.5,2681.3,3.72953]
[1739433784109,0.27600487,2681.5,2681.3,4.48993]
[1739433784307,0.015,2681.4,2681.3,4.48993]
[1739433784621,4.87e-06,2681.5,2681.4,3.72939]
[1739433784818,0.27600487,2681.5,2681.4,3.72939]
[1739433785226,0.2835,2681.5,2681.4,3.72939]
[1739433785947,0.2835,2681.5,2681.3,4.48993]
[1739433786149,0.2835,2681.5,2681.3,4.48984]
[1739433786528,0.2835,2681.5,2681.4,3.72774042]
[1739433787264,0.2835,2681.5,2681.3,4.48984]
[1739433787590,0.2835,2681.5,2681.4,3.72939]
[1739433788487,0.015,2681.4,2681.0,3.8006]
[1739433788649,0.0075,2681.2,2681.0,7.53055]
[1739433788851,0.0075,2681.2,2680.9,3.72997]
[1739433789291,0.0075,2681.2,2680.7,4.48027]
[1739433789292,0.0075,2681.1,2680.7,4.48027]
[1739433789476,0.015,2680.8,2680.4,3.73066]
[1739433789653,4.29524487,2680.8,2680.3,3.73091]
[1739433789851,0.0075,2680.6,2680.3,3.73091]
[1739433790196,0.0075,2680.3,2680.1,3.73108]
[1739433790387,0.0075,2680.3,2680.1,7.4622]
[1739433790563,0.0075,2680.3,2680.2,3.73106]
[1739433791465,0.0075,2680.4,2680.2,3.73106]
[1739433791466,0.0075,2680.4,2680.3,4.54892]
[1739433791908,0.015,2680.4,2680.3,4.58622439]
[1739433792062,0.015,2680.4,2680.3,4.54892]
[1739433792604,0.015,2680.7,2680.3,0.818]
[1739433792802,0.015,2680.7,2680.6,3.73042]
[1739433792992,0.291,2680.7,2680.6,3.73042]
[1739433793505,4.87e-06,2680.8,2680.7,0.7686]
[1739433793710,0.27600487,2680.8,2680.7,4.49896]
[1739433794282,0.276,2680.8,2680.7,4.49896]
[1739433794866,0.75030487,2681.5,2680.7,7.49896]
[1739433795069,0.276,2680.9,2680.8,3.73022]
[1739433795280,0.276,2680.9,2680.8,4.56102]
[1739433795587,0.015,2681.4,2681.3,3.72953]
[1739433795766,0.291,2681.4,2681.3,3.72953]
[1739433795966,0.50583722,2681.6,2681.2,4.56046]
[1739433796266,0.276,2681.5,2681.4,3.72939]
[1739433796482,0.0075,2681.4,2681.1,3.7298]
[1739433797008,0.0075,2681.4,2681.0,3.72989]
[1739433797009,0.565,2681.4,2681.0,3.72989]
[1739433797210,1.20337372,2681.4,2681.0,3.72989]
[1739433797505,0.565,2681.4,2681.2,3.72964]
[1739433797668,0.015,2681.4,2681.2,3.72958]
[1739433797865,0.015,2681.4,2681.3,3.72953]
[1739433798104,0.291,2681.4,2681.3,3.72953]
[1739433798307,0.015,2681.4,2681.3,3.72953]
[1739433798467,0.291,2681.4,2681.3,3.72953]
[1739433800678,0.291,2681.4,2681.2,3.72958]
[1739433802378,0.291,2681.4,2681.3,3.72953]
[1739433803911,0.015,2681.4,2681.3,3.72953]
[1739433804305,0.291,2681.4,2681.3,3.72953]
[1739433812118,0.291,2681.4,2681.2,3.72958]
[1739433812931,0.8031,2681.0,2680.5,0.7972]
[1739433813116,0.0075,2680.8,2680.5,3.73051]
[1739433813436,0.015,2680.8,2680.5,3.73051]
[1739433813934,0.015,2680.8,2680.5,7.46108]
[1739433814432,0.78183722,2681.6,2680.6,8.0932026]
[1739433814635,0.78183722,2681.6,2681.0,3.72984]
[1739433814822,0.78183722,2681.6,2680.6,4.3627526]
[1739433814823,0.565,2681.3,2680.9,3.73]
[1739433815021,0.565,2681.3,2680.8,3.73013]
[1739433815225,0.565,2681.3,2681.0,3.72991]
[1739433815426,0.565,2681.3,2681.1,3.72973]
[1739433815598,0.565,2681.3,2681.0,3.72985]
[1739433815793,0.015,2681.3,2681.2,3.72967]
[1739433816298,0.0075,2681.3,2681.2,3.72967]
[1739433816508,0.276,2681.3,2681.2,3.72967]
[1739433817451,0.50583722,2681.6,2681.5,3.72925]
[1739433817615,0.276,2683.0,2682.1,0.7875]
[1739433817938,0.276,2683.0,2682.9,3.72731]
[1739433818245,0.841,2683.0,2682.9,3.72731]
[1739433818448,0.565,2682.9,2682.7,3.72751]
[1739433818942,0.276,2682.8,2682.7,3.72751]
[1739433819144,0.2835,2682.8,2682.7,3.72751]
[1739433819725,0.0075,2682.8,2682.7,3.76478193]
[1739433819936,0.015,2682.8,2682.7,3.72751]
[1739433820250,0.276,2682.9,2682.5,3.72773]
[1739433820251,0.015,2682.7,2682.5,3.72773]
[1739433820418,0.015,2682.7,2682.6,3.72772]
[1739433821135,0.0075,2682.7,2682.6,3.72772]
[1739433821470,0.7711,2683.1,2682.6,3.72772]
[1739433821471,0.8198,2683.6,2683.0,3.72707]
[1739433821768,0.565,2683.4,2683.0,3.72707]
[1739433822258,0.565,2683.4,2682.8,3.72741]
[1739433822415,0.565,2683.4,2682.9,3.72721]
[1739433822616,0.565,2683.4,2683.0,3.72714]
[1739433822832,0.565,2683.4,2682.9,3.72721]
[1739433823227,0.0075,2683.2,2682.9,3.72721]
[1739433823553,0.0075,2683.2,2682.9,7.45441]
[1739433823752,0.0075,2683.2,2682.9,3.7272]
[1739433823937,0.0075,2683.3,2682.9,7.45442]
[1739433824260,4.87e-06,2683.7,2683.6,3.72633]
[1739433824554,1.15931688,2683.9,2683.6,3.72625]
[1739433824771,0.015,2683.8,2683.6,7.45247]
[1739433825079,0.015,2683.8,2683.6,3.72622]
[1739433825380,0.015,2683.8,2683.2,3.72686]
[1739433825509,0.0075,2683.6,2683.3,3.72674]
[1739433825715,0.0075,2683.6,2683.2,3.72686]
[1739433825716,0.0075,2683.6,2683.4,3.7266]
[1739433826443,0.0075,2683.6,2683.5,3.72647]
[1739433826642,0.2835,2683.6,2683.5,3.72647]
[1739433826842,0.5575,2683.8,2683.5,3.72647]
[1739433827040,0.291,2683.7,2683.6,3.72621]
[1739433827243,0.2835,2683.7,2683.6,3.72621]
[1739433829060,0.015,2683.6,2683.5,3.72639]
[1739433829757,0.015,2683.6,2683.3,3.72674]
[1739433829758,0.015,2683.6,2683.3,3.72663]
[1739433830432,0.565,2683.6,2683.2,3.72687]
[1739433831155,4.29141487,2683.6,2682.9,6.72725]
[1739433831361,0.565,2683.4,2682.9,6.72725]
[1739433831859,0.812,2683.9,2683.4,3.72649]
[1739433832057,0.565,2683.8,2683.4,3.72649]
[1739433832446,0.565,2683.8,2683.2,7.45357]
[1739433832643,4.29107,2683.8,2683.2,3.72676]
[1739433832849,0.015,2683.6,2683.2,3.72676]
[1739433833860,3.72709,2683.1,2682.8,0.74708124]
[1739433834163,0.565,2682.9,2682.3,3.72805]
[1739433834329,0.565,2682.5,2682.2,3.72827]
[1739433834661,0.565,2682.5,2682.1,3.7284]
[1739433834852,0.565,2682.5,2682.3,3.72812]
[1739433835360,0.565,2682.5,2682.1,3.72831]
[1739433835559,0.565,2682.5,2682.3,3.72813]
[1739433835967,0.565,2682.5,2682.3,3.72806]
[1739433836123,0.565,2682.5,2682.3,7.45611]
[1739433836324,0.565,2682.5,2682.3,3.72805]
[1739433837270,0.015,2682.5,2682.4,3.728]
[1739433837444,0.015,2682.5,2682.1,7.45668]
[1739433837643,0.565,2682.5,2682.1,3.72832]
[1739433837862,0.565,2682.5,2682.1,7.45662]
[1739433838364,0.565,2682.5,2681.9,3.72864]
[1739433838598,1.074383,2682.5,2681.9,3.72864]
[1739433838937,1.074383,2682.5,2681.9,3.7286]
[1739433839325,1.074383,2682.5,2682.0,3.72852]
[1739433839530,1.074383,2682.5,2681.7,5.11093525]
[1739433839726,0.565,2682.5,2682.1,3.7283]
[1739433839972,0.565,2682.5,2682.2,3.72827]
[1739433840176,0.565,2682.5,2682.3,3.72814]
[1739433840536,0.565,2682.5,2682.1,3.72841]
[1739433840735,0.565,2682.5,2682.1,3.7283]
[1739433840947,0.565,2682.5,2682.3,3.72802]
[1739433841146,0.276,2682.4,2682.1,3.72831]
[1739433841330,0.276,2682.4,2681.9,7.45722]
[1739433841331,0.0075,2682.3,2681.9,7.45722]
[1739433841531,0.0075,2682.3,2681.9,3.7286]
[1739433841777,0.0075,2682.3,2682.0,3.72853]
[1739433841960,0.565,2682.3,2681.9,3.7286]
[1739433842160,1.021901,2682.3,2681.9,7.45721]
[1739433842367,0.565,2682.3,2681.9,3.7286]
[1739433842768,0.8011,2682.6,2682.4,3.72799]
[1739433843077,0.291,2682.5,2682.4,3.72799]
[1739433843302,0.0075,2682.4,2682.3,3.72804]
[1739433843601,0.015,2682.4,2682.1,3.72835]
[1739433843761,0.565,2682.4,2682.0,3.72843]
[1739433843964,0.565,2682.4,2682.2,3.72827]
[1739433844704,4.87e-06,2682.3,2682.1,3.72838]
[1739433845208,0.0075,2682.2,2681.6,4.55023]
[1739433845407,0.565,2682.2,2681.8,3.72874]
[1739433846505,4.29336,2682.2,2681.6,3.72903]
[1739433846802,4.29336,2682.2,2681.6,7.45806]
[1739433847205,4.29336,2682.2,2681.6,3.72903]
[1739433847383,0.565,2682.0,2681.7,3.7289]
[1739433847700,0.565,2682.0,2681.8,3.72882]
[1739433848081,0.56500487,2682.0,2681.8,3.72882]
[1739433848506,0.1644708,2682.0,2681.8,3.72882]
[1739433848908,0.01500487,2682.0,2681.9,3.72869]
[1739433850691,0.29100487,2682.0,2681.9,3.72869]
[1739433853295,0.29100487,2682.0,2681.9,3.7659745]
[1739433853484,0.29100487,2682.0,2681.9,3.76597262]
[1739433853706,0.27600487,2682.0,2681.9,3.72869]
[1739433853915,4.87e-06,2682.0,2681.9,3.72869]
[1739433854099,4.87e-06,2682.0,2681.9,4.50689]
[1739433854304,0.2835,2682.1,2682.0,3.72856]
[1739433854508,0.2835,2682.1,2682.0,7.2988126]
[1739433857566,0.2835,2682.1,2682.0,3.72856]
[1739433858165,0.291,2682.1,2682.0,3.72856]
[1739433858462,0.0075,2682.0,2681.9,3.72861]
[1739433858598,0.015,2682.0,2681.9,3.72869]
[1739433859310,0.0075,2682.0,2681.9,3.72869]
[1739433860132,0.015,2682.0,2681.9,3.72869]
[1739433860541,0.015,2682.0,2681.7,4.31584619]
[1739433860744,0.015,2682.0,2681.7,8.04480619]
[1739433860897,0.015,2682.0,2681.9,3.72869]
[1739433861318,1.0806,2682.1,2682.0,4.71356]
[1739433862295,1.0806,2682.1,2682.0,0.985]
[1739433863637,1.0956,2682.1,2682.0,0.985]
[1739433864328,0.291,2682.1,2682.0,4.71356]
[1739433864641,0.0075,2682.1,2682.0,4.71356]
[1739433864849,0.2835,2682.1,2682.0,4.71356]
[1739433865138,0.276,2682.1,2682.0,5.50386]
[1739433865502,0.276,2682.1,2682.0,9.0741126]
[1739433869239,0.2835,2682.1,2682.0,8.2838126]
[1739433871054,0.2835,2682.1,2682.0,8.63171745]
[1739433871557,0.276,2682.1,2682.0,8.63171745]
[1739433871725,4.87e-06,2682.4,2682.3,3.72814]
[1739433871930,0.276,2682.4,2682.3,7.2983926]
[1739433872330,4.87e-06,2682.8,2682.7,3.72758]
[1739433872531,0.27600487,2682.8,2682.7,3.72758]
[1739433872727,5.905,2682.9,2682.6,3.72772]
[1739433873052,0.2835,2682.8,2682.7,3.72758]
[1739433873252,0.0075,2682.8,2682.7,3.72758]
[1739433873557,0.2835,2682.8,2682.7,3.72758]
[1739433874308,0.015,2682.7,2682.6,3.72772]
[1739433874613,1.0927,2682.8,2682.7,3.72758]
[1739433874813,0.276,2682.8,2682.7,3.72758]
[1739433875151,0.2835,2682.8,2682.7,3.72758]
[1739433875313,0.276,2682.8,2682.7,3.72758]
[1739433877254,0.278,2683.9,2683.0,0.789]
[1739433877408,0.278,2683.9,2683.7,3.72619]
[1739433877613,0.015,2683.8,2683.7,3.72619]
[1739433877840,0.293,2683.8,2683.7,3.72619]
[1739433878035,0.278,2683.8,2683.7,3.72619]
[1739433878449,0.015,2684.2,2684.0,3.72568]
[1739433878655,0.2855,2684.1,2684.0,7.45137]
[1739433878952,0.278,2684.1,2684.0,7.45137]
[1739433879114,0.278,2684.1,2684.0,3.72568]
[1739433879319,0.2855,2684.1,2684.0,3.72568]
[1739433880657,0.015,2684.0,2683.9,3.72592]
[1739433881181,0.015,2684.0,2683.8,3.72605]
[1739433881336,0.015,2684.0,2683.9,3.72592]
[1739433881677,0.2855,2684.0,2683.9,3.72592]
[1739433881850,0.293,2684.0,2683.9,3.72592]
[1739433882058,0.0075,2683.9,2683.8,3.72605]
[1739433883537,0.0075,2683.9,2683.8,3.72606]
[1739433887777,0.2855,2684.0,2683.9,3.72592]
[1739433889053,0.015,2683.9,2683.8,3.72606]
[1739433889451,0.015,2683.9,2683.7,3.5702526]
[1739433889452,0.015,2683.9,2683.7,3.72615]
[1739433889774,0.8389,2683.8,2683.7,3.72615]
[1739433890341,0.0075,2683.8,2683.7,3.72615]
[1739433893881,0.0075,2683.7,2683.6,4.45810642]
[1739433894390,0.278,2684.0,2682.7,12.79779267]
[1739433894391,0.0075,2683.8,2683.1,3.5702526]
[1739433894703,0.0075,2683.6,2683.4,3.72652]
[1739433895066,0.0075,2683.6,2683.1,5.27188587]
[1739433895454,0.0075,2683.6,2683.3,3.72665]
[1739433895711,0.0075,2683.6,2683.4,3.72661]
[1739433895984,0.0075,2683.6,2683.5,3.72647]
[1739433896814,0.00750487,2683.7,2683.5,3.72635]
[1739433897128,0.0075,2683.6,2683.5,3.72638]
[1739433897888,0.01500487,2683.7,2683.6,3.72633]
[1739433898040,0.27700487,2683.7,2683.6,4.48063]
[1739433898239,0.277,2683.7,2683.6,4.48063]
[1739433898444,0.2845,2683.7,2683.6,4.51788806]
[1739433899678,0.292,2683.7,2683.6,3.72633]
[1739433899879,0.015,2683.6,2683.2,3.72689]
[1739433900194,0.015,2683.6,2683.5,3.72647]
[1739433900408,0.015,2683.6,2683.2,3.72679]
[1739433900624,0.015,2683.6,2683.4,3.7266]
[1739433901214,0.015,2683.6,2683.5,3.72647]
[1739433902230,0.0075,2683.6,2683.5,3.72647]
[1739433902817,0.015,2683.6,2683.3,3.72675]
[1739433903507,0.0075,2683.4,2683.1,4.45759587]
[1739433903735,0.0075,2683.4,2683.1,8.18453587]
[1739433904033,0.015,2683.4,2683.1,0.73065587]
[1739433904230,0.56500487,2683.4,2682.9,3.72721]
[1739433904529,0.015,2682.9,2682.7,4.46564022]
[1739433904736,0.01500487,2682.9,2682.7,3.72753]
[1739433905324,0.01500487,2682.9,2682.7,3.7275]
[1739433905497,0.01500487,2682.9,2682.8,3.72744]
[1739433906032,0.01500487,2682.9,2682.8,3.76471087]
[1739433906204,4.87e-06,2682.9,2682.8,4.55444]
[1739433906407,4.87e-06,2682.9,2682.8,8.16196107]
[1739433906714,4.87e-06,2682.9,2682.8,8.1246926]
[1739433907322,1.08170487,2683.7,2682.8,4.3972526]
[1739433907519,0.277,2683.6,2683.5,3.72639]
[1739433907747,0.292,2683.6,2683.5,3.72639]
[1739433908026,4.87e-06,2684.2,2683.9,3.72581]
[1739433908221,4.87e-06,2684.2,2684.1,3.72564]
[1739433908650,0.27700487,2684.2,2684.1,3.72564]
[1739433908964,0.0075,2684.1,2684.0,3.72577]
[1739433910346,0.2855,2684.1,2684.0,3.72577]
[1739433910661,0.293,2684.1,2684.0,3.72577]
[1739433911159,0.0075,2684.0,2683.8,3.72601]
[1739433911665,0.565,2684.0,2683.5,3.72645]
[1739433911837,0.0075,2683.7,2683.5,3.72645]
[1739433912374,0.0075,2683.7,2683.6,3.72633]
[1739433912866,0.015,2683.5,2683.3,3.72675]
[1739433913031,0.56500487,2683.5,2683.1,4.48096193]
[1739433913234,1.07093636,2683.5,2682.9,3.72724]
[1739433913429,0.565,2683.3,2682.9,3.72724]
[1739433913738,0.565,2683.3,2683.0,3.7271]
[1739433913938,0.565,2683.3,2682.5,7.2980526]
[1739433913939,0.565,2683.3,2683.2,3.72689]
[1739433914140,0.565,2683.3,2683.0,3.72715]
[1739433915180,0.565,2683.3,2683.1,3.72702]
[1739433915674,0.565,2683.3,2683.0,3.72715]
[1739433916541,0.565,2683.3,2682.8,3.72735]
[1739433917288,0.565,2683.3,2682.7,0.73742233]
[1739433917449,0.565,2683.3,2682.9,3.7273]
[1739433917652,0.565,2683.3,2683.1,3.727]
[1739433918878,0.278,2683.2,2683.1,3.727]
[1739433919261,0.293,2683.2,2683.1,3.727]
[1739433920289,4.87e-06,2683.5,2683.4,3.72661]
[1739433920490,0.278,2683.5,2683.4,3.72661]
[1739433920797,0.2855,2683.5,2683.4,3.72661]
[1739433921389,3.72544,2684.3,2683.4,3.72661]
[1739433921390,0.278,2683.6,2683.5,3.72647]
[1739433921609,0.8194,2684.2,2683.8,3.72592]
[1739433921743,0.293,2684.1,2683.8,3.72592]
[1739433922675,0.293,2684.1,2683.5,4.50547]
[1739433922877,0.293,2684.1,2683.7,3.7261]
[1739433924228,0.293,2684.1,2683.7,7.45222]
[1739433924515,0.293,2684.1,2683.8,3.72603]
[1739433924738,0.293,2684.1,2683.7,3.72614]
[1739433924882,0.29300487,2684.1,2683.8,3.72603]
[1739433925819,0.29300487,2684.1,2684.0,3.72578]
[1739433926318,0.28450487,2684.1,2684.0,3.72578]
[1739433928252,0.7555,2684.4,2684.3,3.72536]
[1739433928526,4.87e-06,2684.6,2684.4,3.72515]
[1739433928829,0.292,2684.5,2684.4,3.72515]
[1739433929620,0.015,2684.4,2684.2,3.72539]
[1739433929860,0.015,2684.4,2684.3,3.72536]
[1739433931100,4.87e-06,2684.6,2684.5,3.72508]
[1739433931299,0.27600487,2684.6,2684.0,7.2960126]
[1739433931501,0.0075,2684.5,2684.2,3.72548]
[1739433931839,0.0075,2684.5,2684.4,3.72522]
[1739433932734,0.10197423,2684.5,2684.4,3.72522]
[1739433932925,0.0075,2684.5,2684.4,3.72522]
[1739433934098,0.10214291,2684.5,2684.4,3.72522]
[1739433936364,0.10214291,2684.5,2684.4,3.76246784]
[1739433936502,0.09464291,2684.5,2684.4,7.33271739]
[1739433936694,0.09464291,2684.5,2684.4,8.16031739]
[1739433936935,4.87e-06,2684.9,2684.8,3.72467]
[1739433937120,0.09564916,2684.9,2684.8,4.55227]
[1739433937393,0.09564429,2684.9,2684.8,4.55227]
[1739433937509,6.1855,2685.4,2685.3,3.72397]
[1739433937715,6.178,2685.4,2685.3,4.52717]
[1739433937906,6.27376746,2685.4,2685.3,4.52717]
[1739433942068,6.27376746,2685.4,2685.2,3.7241]
[1739433942289,1.3682,2685.3,2684.9,3.72444]
[1739433942573,1.3682,2685.3,2685.0,3.72437]
[1739433942870,0.015,2685.1,2684.9,3.72449]
[1739433943072,0.015,2685.1,2685.0,3.72439]
[1739433943272,0.015,2685.1,2684.9,3.72449]
[1739433943570,0.015,2685.1,2685.0,3.72439]
[1739433945452,0.015,2685.1,2684.9,3.72444]
[1739433945648,0.015,2685.1,2685.0,3.72439]
[1739433948415,0.80320487,2685.3,2685.2,3.72411]
[1739433948659,0.27600487,2685.3,2685.2,3.72411]
[1739433949430,0.29100487,2685.3,2685.2,3.72411]
[1739433949938,0.015,2685.2,2685.1,3.72424]
[1739433950663,0.015,2685.2,2684.9,4.09738463]